Workbook

Sheet Cover Page
K2: Template version 25.1a (for incinerators) - 27/11/25
K4: Note that there is another version of this template available for co-incinerators
B8: Add photo
K13: Notes:
K14: This template may require adjustments by individual operators to meet specific reporting requirements as defined in the site Permit(s)
B29: Annual Performance Report 2025
B31: Permit EPR/XP3935TX/V005
B33: Severn Waste Services Limited
B37: EnviRecover
B39: Year: | C39: 2025
B41: Address: | C41: Hartlebury Trading Estate, Hartlebury, Kidderminster DY10 4JD
B43: Tel: | C43: 01905 761680
B45: Email: | C45: enquiries@severnwaste.co.uk
B47: Prepared by: | C47: Sandy Edge | F47: Position: | G47: Environmental Technician
B49: Approved by: | C49: Jasen Jordan | F49: Position: | G49: Plant Manager
B51: Version: | C51: 2
B53: Issue Date: | C53: 2026-03-24

Sheet Facility Info
A1: =+'Cover Page'!$B$29 -> Annual Performance Report 2025 | E1: =+'Cover Page'!$B$33 -> Severn Waste Services Limited
A3: Plant Description and Design | K3: Notes:
A5: EnviRecover Energy from Waste facility is situated on the Hartlebury Trading Estate, some 2 km south east of Hartlebury. The main purpose of the facility is to burn non-hazardous municipal, commercial and industrial waste and to recover energy by producing steam. The steam is then used to power a steam turbo generator which produces electricity for export to the grid. Typical hourly electrical export averaged over the year is 17.7MWh. There is also the capability for further heat export to local consumers, although there is currently no local demand for this outlet. The plant is permitted to process 230,000 tonnes per annum during a typical 8,000 hours of operation. | K5: Include summary of plant design, design capacity, no. of combustion lines, electrical and heat capacity and any other general information that describes the facility, its location and purpose
A20: Summary of Operational Processes and Procedures
A22: Incoming waste vehicles drive into the tipping hall and discharge their loads into the waste storage bunker. Overhead crane grabs load the waste into the furnace feed hopper, from where the waste is fed into the furnace in a controlled manner. A moving combustion grate inside the furnace agitates the waste to ensure a complete burn. Pre-heated primary air is injected into the furnace from underneath the combustion grate. This helps to dry out any wet waste and it provides the oxygen for the fire. Secondary air is introduced above the grate for combustion control, and it also ensures complete combustion. As the waste moves down the grate it passes through several combustion zones until it is fully combusted down to ash. Bottom ash from the combustion grate is quenched with water and then conveyed via a metals extraction system to a concrete storage area prior to removal from site. Two auxiliary oil fired burners are located in the combustion chamber. These are used for starting up the process, and will raise the temperature above the minimum temperature of 850°C for 2 seconds in the combustion chamber. This temperature is specified in the Environmental Permit as the minimum temperature at which waste combustion may occur. In normal operation, continuous operation of the auxiliary burners is not required as the waste fire is self-sustaining. The heat from the combustion of waste is captured by a water tube boiler, evaporators and superheaters which raise steam at 60 bar and 415°C to power a turbo generator. An economiser is fitted downstream of the boiler unit to pre-heat the incoming feed water. The furnace is fitted with an aqueous ammonia injection system in order to control the facility’s emissions of NOx to air through selective non-catalytic reduction. A flue gas treatment centre incorporates a reactor with a dry hydrated lime injection system to neutralise acid flue gases. Activated carbon is also injected into the reactor to reduce the concentrations of heavy metals and dioxins in the combustion gases emitted to air. A bag house filter is used to separate out the resulting particulate matter from the cooled and treated gases. Air pollution control residues from the bag house filter are collected continuously and stored in a dedicated silo prior to removal from the site. The facility has a 75 m stack equipped with a Continuous Emission Monitoring System (CEMS) which continuously monitor for particulates, carbon monoxide (CO), sulphur dioxide (SO2), ammonia (NH3), hydrogen chloride (HCl), oxygen (O2), nitrogen oxides (NOx) and volatile organic compounds (VOC). There is no discharge of process liquids to controlled waters. Uncontaminated surface and roof waters are discharged to the surface water drainage system via a series of interceptors, attenuation lagoons and isolation valves. | K22: Include summary of key processes and procedures such as (but not limited to); waste reception, control rooms, grate, bed and boiler, energy & heat generation, cooling systems, residue management, emission controls, health and safety systems, maintenance

Sheet Operational Data
A1: =+'Cover Page'!$B$29 -> Annual Performance Report 2025 | E1: =+'Cover Page'!$B$33 -> Severn Waste Services Limited
A3: Operational Data
A4: Plant Size: | B4: 230000 | D4: tonnes pa | J4: Notes:
A5: Nominal net thermal input: | B5: 68 | C5: MWth | J5: * Export capacity = nominal generation capacity at the generator terminals minus nominal parasitic load. ** CHP and district heating plants only - put N/A if no heat export. *** Combusted tonnage = tonnes delivered in period + (tonnes in bunker at start of period – tonnes in bunker at end of period), or equivalent calculation depending on plant type **** Availability Definition: The availability of a line is to be calculated by the number of hours the line reported Continuously Monitored emission levels to the Regulator through the calendar year divided by the total number of hours in that year. The overall plant availability is calculated as the mean of all lines in the plant. For clarity this includes periods of abnormal operation. Rationale: The primary function of an Energy from Waste facility is the disposal of waste. It follows therefore that the availability of a plant is determined by the period of time a facility spends undertaking this activity. *****NCV of waste: This should be completed for all plants which have a boiler. Calculate using total thermal power produced by boiler/boiler efficiency, or other suitable calculation.
A6: Nominal electrical export capacity*: | B6: 22 | C6: MWe
A7: Nominal heat export capacity**: | B7: N/A | C7: MWth
A8: No. of combustion lines: | B8: 1 | C8: No. of steam turbines: | E8: 1
A10: Waste types received | B10: Unit | C10: Q1 | D10: Q2 | E10: Q3 | F10: Q4 | G10: Year Total | H10: %
A11: Household / Local Authority | B11: tonnes | C11: 46110.4 | D11: 37271.3 | E11: 39554.7 | F11: 45005.3 | G11: =SUM(C11:F11) -> 167941.7 | H11: =IF(G11>0,G11/$G$21,"-") -> 0.8353010341
A12: Commercial & Industrial | C12: 10119.6 | D12: 7994.8 | E12: 5508.6 | F12: 9490.6 | G12: =SUM(C12:F12) -> 33113.6 | H12: 0.1646989659
A13: Hazardous | C13: - | D13: - | E13: - | F13: - | G13: 0 | H13: -
A14: Clinical | C14: - | D14: - | E14: - | F14: - | G14: 0 | H14: -
A15: Waste wood (biomass) | C15: - | D15: - | E15: - | F15: - | G15: 0 | H15: -
A16: Refuse Derived Fuel (incl. SRF) - H'hold/LA | C16: - | D16: - | E16: - | F16: - | G16: =SUM(C16:F16) -> 0 | H16: -
A17: Refuse Derived Fuel (incl. SRF) - C&I | C17: - | D17: - | E17: - | F17: - | G17: 0 | H17: -
A18: Other [Please specify] | C18: - | D18: - | E18: - | F18: - | G18: 0 | H18: -
A19: Other [Please specify] | C19: - | D19: - | E19: - | F19: - | G19: 0 | H19: -
A20: Other [Please specify] | C20: - | D20: - | E20: - | F20: - | G20: 0 | H20: -
A21: Total waste received | C21: =SUM(C11:C20) -> 56230 | D21: =SUM(D11:D20) -> 45266.1 | E21: =SUM(E11:E20) -> 45063.3 | F21: =SUM(F11:F20) -> 54495.9 | G21: 201055.3
A22: Rejected Waste | C22: - | D22: - | E22: - | F22: - | G22: =SUM(C22:F22) -> 0 | H22: =IF(G22>0,G22/$G$21,"-") -> -
A23: Unprocessed waste transferred out | C23: - | D23: - | E23: - | F23: - | G23: =SUM(C23:F23) -> 0 | H23: =IF(G23>0,G23/$G$21,"-") -> -
A24: Total waste combusted *** | C24: 57308.2 | D24: 50264.5 | E24: 42948.6 | F24: 56990 | G24: =SUM(C24:F24) -> 207511.3
A26: Energy Usage / Export | B26: Unit | C26: Q1 | D26: Q2 | E26: Q3 | F26: Q4 | G26: Year Total | H26: KWh/te | J26: Password for protected cells A password has been set to prevent accidental editing of cells with formulae. If you still need to make an edit for some reason then the password = 1234
A27: Power generated at generator terminals | B27: MWh | C27: 43784 | D27: 39194 | E27: 34603 | F27: 42889 | G27: =SUM(C27:F27) -> 160470 | H27: =IF(G27>0,G27*1000/$G$24,"-") -> 773.307285
A28: Power exported to grid and other external user(s) | C28: 38607.52 | D28: 34601.89 | E28: 30618.33 | F28: 37929.26 | G28: =SUM(C28:F28) -> 141757 | H28: =IF(G28>0,G28*1000/$G$24,"-") -> 683.1290633
A29: Power imported | C29: 0.0042 | D29: 147.7883 | E29: 261.6384 | F29: 97.1056 | G29: 506.5365 | H29: =IF(G29>0,G29*1000/$G$24,"-") -> 2.441006827
A30: Indicative parasitic load | B30: % | C30: =IF(C27>0,(C27-C28)/C27,"-") -> 0.1182276631 | D30: =IF(D27>0,(D27-D28)/D27,"-") -> 0.1171635965 | E30: 0.1151538884 | F30: 0.1156413066 | G30: =IF(G27>0,1-G28/(G27+G29),"-") -> 0.119393403
A31: Thermal Energy Exported ** | G31: =SUM(C31:F31) -> 0 | H31: =IF(G31>0,G31*1000/$G$24,"-") -> -
A32: R1 value (if applicable) | B32: R1 | C32: - | D32: - | E32: - | F32: - | G32: 0.8
A34: Waste Disposal & Recovery | B34: Unit | C34: Q1 | D34: Q2 | E34: Q3 | F34: Q4 | G34: Year Total | H34: % inputs
A35: APC Residues - produced | B35: tonnes | C35: 1625 | D35: 1433.8 | E35: 1193.6 | F35: 1522 | G35: =SUM(C35:F35) -> 5774.4 | H35: =IF(G35>0,G35/$G$24,"-") -> 0.02782691834
A36: IBA - produced | C36: 10669.1 | D36: 10891 | E36: 8614.1 | F36: 11431.9 | G36: 41606.1 | H36: =IF(G36>0,G36/$G$24,"-") -> 0.2005004065
A37: Metals recycling | C37: 763 | D37: 709 | E37: 654 | F37: 147 | G37: =SUM(C37:F37) -> 2273 | H37: 0.01095362036
A38: Other | C38: 0 | D38: 0 | E38: 0 | F38: 0 | G38: =SUM(C38:F38) -> 0 | H38: -
A39: Other | C39: 0 | D39: 0 | E39: 0 | F39: 0 | G39: 0 | H39: -
A40: Other | C40: 0 | D40: 0 | E40: 0 | F40: 0 | G40: 0 | H40: -
A42: Raw Material Usage | B42: Unit | C42: Q1 | D42: Q2 | E42: Q3 | F42: Q4 | G42: Year Total | H42: Qty./te
A43: Mains Water | B43: ltrs | C43: 8440000 | D43: 8978000 | E43: 7702000 | F43: 8967000 | G43: =SUM(C43:F43) -> 34087000 | H43: =IF(G43>0,G43/$G$24,"-") -> 164.2657532
A44: Other Water | B44: ltrs | C44: - | D44: - | E44: - | F44: - | G44: 0 | H44: =IF(G44>0,G44/$G$24,"-") -> -
A45: Ammonia | B45: kgs | C45: 737.86 | D45: 2249.88 | E45: 3634.38 | F45: 23819.78 | G45: 30441.9 | H45: 0.1466999628
A46: Urea | B46: kgs | C46: - | D46: - | E46: - | F46: - | G46: =SUM(C46:F46) -> 0 | H46: -
A47: Activated Carbon | B47: kgs | C47: 16760 | D47: 13910 | E47: 9690 | F47: 12180 | G47: 52540 | H47: 0.253191031
A48: Lime / hydrated lime | B48: kgs | C48: 621260 | D48: 597600 | E48: 482330 | F48: 602760 | G48: 2303950 | H48: 11.10276886
A49: Fuel oil | B49: ltrs | C49: 44897.28 | D49: 146492.9 | E49: 75111.61 | F49: 49696.29 | G49: 316198.08 | H49: 1.523763188
A50: Gas | B50: m3 | C50: - | D50: - | E50: - | F50: - | G50: 0 | H50: -
A51: Other | C51: - | D51: - | E51: - | F51: - | G51: 0 | H51: -
A53: Summary | B53: Line/Unit | C53: Q1 | D53: Q2 | E53: Q3 | F53: Q4 | G53: Year Total | H53: Hrs in year
A54: Availability of waste combustion by line, hrs **** | B54: 1 | C54: 2132.25 | D54: 1988.73 | E54: 1732.75 | F54: 2098.86 | G54: =SUM(C54:F54) -> 7952.59 | H54: =+G54/$I$54 -> 0.9078299087 | I54: 8760 | J54: Change this figure to 8784 in a leap year
B55: 2 | G55: 0 | H55: =+G55/$I$54 -> 0
B56: 3 | G56: 0 | H56: 0
B57: 4 | G57: 0 | H57: 0
B58: 5 | G58: =SUM(C58:F58) -> 0 | H58: 0
A59: Hours of turbine operations, hrs | B59: 1 | C59: 2161 | D59: 1986.74 | E59: 1715.5 | F59: 2096.9 | G59: 7960.14 | H59: 0.9086917808
A60: Hours of turbine operations, hrs | B60: 2 | G60: 0 | H60: 0
A61: Hours of heat / steam export** | B61: hours | G61: 0 | H61: =IF(B61>0,G60/I54,"n/a") -> 0
A62: Net calorific value of waste***** | B62: MJ/kg | C62: 9.47 | D62: 10.03 | E62: 10.33 | F62: 9.41
A63: Abnormal operation events | B63: qty. | C63: 0 | D63: 1 | E63: 0 | F63: - | G63: 1 | H63: =IF(G63>0,"yes","no") -> yes
A64: Abnormal operation duration | B64: hours | C64: 0 | D64: 1 | E64: 0 | F64: 0 | G64: 1 | H64: =+(G64)/I54 -> 0.0001141552511
A65: Permit Breaches | B65: qty. | C65: - | D65: - | E65: - | F65: - | G65: 0 | H65: =IF(G65>0,"yes","no") -> no

Sheet Operational Summary
A1: =+'Cover Page'!$B$29 -> Annual Performance Report 2025 | E1: =+'Cover Page'!$B$33 -> Severn Waste Services Limited
A3: Summary of Plant Operations and Maintenance during the reporting year | K3: Notes:
A5: The plant processed 207,511 tonnes throughout 2025 Electricity exported was 141,757 MWhs throughout 2025 The boiler recorded 7953 operational hours in 2025 and the turbo generator was operational for 7960 hours. The remaining hours of the year were allocated to; 1. The scheduled, annual maintenance shutdown in July to allow for internal inspections, tests and repairs. This included a upgrade to the boiler tubes in the 2nd and 4th passes. 2. An unscheduled shutdown related to a boiler tube leak in May and October. Also, 3 days to clear blocked recirculation channels. | K5: Include summary of key operational and/or maintenance activity undertaken in the year, such as any major component upgrades and/or replacements
A29: =+'Cover Page'!C39 -> 2025 | B29: Plant shut-downs
A30: Start date | B30: End date | C30: Reason for shut-down | K30: Provide a very brief reason for plant shut-down e.g. "Shut-down prior to major outage"; "Emergency shut-down due to boiler tube leak". All emergency shut-downs must be listed (irrespective of whether or not they were required to be reported to the EA). There is no need to include periods of hot-standby here (e.g. to clear feed chute hopper blockages). For clinical waste incinerators which require regular shut-downs for boiler cleaning, there is no need to record these here (only those prior to major outages, and emergency shut-downs).
A31: 2025-05-04 | B31: 2025-05-08 | C31: Emergency shutdown, boiler furnace tube failure.
A32: 2025-05-31 | B32: 2025-06-02 | C32: Shutdown to clear blockages from recirculation channels.
A33: 2025-07-01 | B33: 2025-07-20 | C33: Shutdown for planned annual outage.
A34: 2025-10-13 | B34: 2025-10-18 | C34: Shutdown for boiler tube leak repairs.

Sheet Perf. Form 1
A1: =+'Cover Page'!C39 -> 2025 | B1: Annual Reporting Performance Form 1
A3: =+'Cover Page'!B31 -> Permit EPR/XP3935TX/V005 | F3: Operator: | G3: =+'Cover Page'!B37 -> EnviRecover
A4: Facility: | B4: =+'Cover Page'!B33:I33 -> Severn Waste Services Limited | F4: Form: | G4: Performance 1
A6: Reporting Period from: | D6: 2025-01-01 | F6: to: | G6: 2025-12-31
A8: =+A1 -> 2025 | B8: Annual Reporting of Waste Disposal and Recovery
A9: Waste Description | C9: Disposal Route(s) | E9: Disposal Tonnes | G9: Recovery Tonnes | I9: % / tonne of waste incinerated
A10: 1) Hazardous Wastes
A11: APC Residues | E11: 0 | G11: 5774 | I11: =IF((E11+G11)>0,(E11+G11)/'Operational Data'!$G$24, "-") -> 0.02782499074
A12: IBA | E12: 0 | G12: 0 | I12: =IF((E12+G12)>0,(E12+G12)/'Operational Data'!$G$24, "-") -> -
I13: =IF((E13+G13)>0,(E13+G13)/'Operational Data'!$G$24, "-") -> -
I14: =IF((E14+G14)>0,(E14+G14)/'Operational Data'!$G$24, "-") -> -
A15: Total Hazardous Waste | E15: =SUM(E11:F14) -> 0 | G15: =SUM(G11:H14) -> 5774 | I15: =IF((E15+G15)>0,(E15+G15)/'Operational Data'!$G$24, "-") -> 0.02782499074
A17: 2) Non-Hazardous Wastes
A18: IBA | E18: 0 | G18: 41606.1 | I18: =IF((E18+G18)>0,(E18+G18)/'Operational Data'!$G$24, "-") -> 0.2005004065
A19: Ferrous Metal | E19: 0 | G19: 2273.3 | I19: =IF((E19+G19)>0,(E19+G19)/'Operational Data'!$G$24, "-") -> 0.01095506606
A20: Process Water | E20: 0 | G20: 0 | I20: =IF((E20+G20)>0,(E20+G20)/'Operational Data'!$G$24, "-") -> -
I21: =IF((E21+G21)>0,(E21+G21)/'Operational Data'!$G$24, "-") -> -
I22: =IF((E22+G22)>0,(E22+G22)/'Operational Data'!$G$24, "-") -> -
A23: Total Non-Hazardous Waste | E23: =SUM(E18:F22) -> 0 | G23: =SUM(G18:H22) -> 43879.4 | I23: =IF((E23+G23)>0,(E23+G23)/'Operational Data'!$G$24, "-") -> 0.2114554725
A24: TOTAL WASTE | E24: =+E23+E15 -> 0 | G24: =+G23+G15 -> 49653.4 | I24: =IF((E24+G24)>0,(E24+G24)/'Operational Data'!$G$24, "-") -> 0.2392804633
A26: Operator’s comments :
A31: =+A1 -> 2025 | B31: Annual Reporting of Water and Other Raw Material Usage
A32: Raw Material | E32: Usage | G32: Unit | H32: Specific Usage | J32: Unit
A33: Mains Water | E33: =+'Operational Data'!G43/1000 -> 34087 | G33: m3 | H33: =IF(E33>0,E33/'Operational Data'!$G$24,"-") -> 0.1642657532 | J33: m3/te
A34: Total Water | E34: =+'Operational Data'!G44+'Operational Data'!G43/1000 -> 34087 | G34: m3 | H34: =IF(E34>0,E34/'Operational Data'!$G$24,"-") -> 0.1642657532 | J34: m3/te
A35: Urea / Ammonia | E35: =+'Operational Data'!G45 -> 30441.9 | G35: kg | H35: =IF(E35>0,E35/'Operational Data'!$G$24,"-") -> 0.1466999628 | J35: kg/te
A36: Activated Carbon | E36: =+'Operational Data'!G47 -> 52540 | G36: kg | H36: =IF(E36>0,E36/'Operational Data'!$G$24,"-") -> 0.253191031 | J36: kg/te
A37: Lime / hydrated lime / Sodium Bicarb. | E37: =+'Operational Data'!G48 -> 2303950 | G37: kg | H37: =IF(E37>0,E37/'Operational Data'!$G$24,"-") -> 11.10276886 | J37: kg/te
A39: Operator’s comments :
A43: =+A31 -> 2025 | B43: Annual Reporting of other performance indicators
A44: Parameter | C44: Results by Line
C45: A1 | D45: A2 | E45: A3 | F45: A4 | G45: A5 | I45: Turbine 1 | J45: Turbine 2
A46: Operating hours for the year, hours | C46: 7952
A47: Number of periods of abnormal operation, qty. | C47: 1
A48: Cumulative hours of abnormal operation for this year, hours | C48: 1
A50: Operator’s comments :
A54: Signed: | G54: Date: | H54: 2026-03-27

Sheet Energy Form 1
A1: =+'Cover Page'!C39 -> 2025 | B1: Annual Reporting of Energy Usage/Export
A3: =+'Cover Page'!B31 -> Permit EPR/XP3935TX/V005 | F3: Operator: | G3: =+'Cover Page'!B37 -> EnviRecover
A5: Facility: | B5: =+'Cover Page'!B33:I33 -> Severn Waste Services Limited | F5: Form: | G5: Energy 1
A7: Reporting Period from: | D7: =+'Perf. Form 1'!D6:E6 -> 2025-01-01 | F7: to: | G7: =+'Perf. Form 1'!G6:H6 -> 2025-12-31
A9: Energy Source | D9: Energy Usage | F9: Unit | G9: Specific Usage (KWh/tonne incinerated
A10: Electricity Produced | D10: =+'Operational Data'!G27 -> 160470 | F10: MWh | G10: =+'Operational Data'!H27 -> 773.307285
A11: Electricity Imported | D11: =+'Operational Data'!G29 -> 506.5365 | F11: MWh | G11: =+'Operational Data'!H29 -> 2.441006827
A12: Electricity Exported | D12: =+'Operational Data'!G28 -> 141757 | F12: MWh | G12: =+'Operational Data'!H28 -> 683.1290633
A13: Gas Oil | D13: 316.2 | F13: tonnes | G13: 1.52
A14: Steam/hot water exported | D14: =+'Operational Data'!G31 -> 0 | F14: GWh | G14: =+'Operational Data'!H31 -> -
A18: Operator’s comments :
A29: Signed: | G29: Date: | H29: 2026-03-27

Sheet Permit Compliance
A1: =+'Cover Page'!$B$29 -> Annual Performance Report 2025 | E1: =+'Cover Page'!$B$33 -> Severn Waste Services Limited
A3: Summary of Permit Compliance
A5: Compliance with permit limits for continuously monitored pollutants
A7: The plant met its emission limits as shown in the table below:
A8: Substance | C8: Percentage time compliant during operationNote 1 | L8: Notes:
C9: Half-hourly limit | F9: Daily limit | L9: Note 1: Please report to 2 decimal places, i.e. xx.xx% Note 2: Please enter into this table any permit non-compliances that the EA has given a CCS score for. Please also enter any other non-compliances which you have notified to the EA (e.g. ELV exceedances) but which have not yet been assessed by the EA. There is no need to enter any notifications which were subsequently assessed by the EA not to be permit breaches. Note 3: Please enter information here (rather than just referencing the notifications that were sent to the EA) including where relevant the incineration line reference, pollutant and value of the measured result for any ELV exceedances.
A10: Particulates | C10: 1 | F10: 1
A11: Oxides of nitrogen | C11: 1 | F11: 0.3962
A12: Sulphur dioxide | C12: 1 | F12: 1
A13: Carbon monoxide | C13: 100.00% 95% of 10-min averages | F13: 1
A14: Total organic carbon | C14: 0.9999 | F14: 1
A15: Hydrogen chloride | C15: 1 | F15: 1
A16: Hydrogen fluoride | C16: 1 | F16: 1
A19: Summary of non-compliances under the permit Note 2
A20: Date | B20: Summary of non-compliance Note 3 | D20: Reason | G20: Measures taken to prevent reoccurrence | H20: CCS score if applicable*
H21: Impact | I21: Root cause
A22: 2025-10-19 | B22: TOC 30 minute average exceedance of 25.29 mg/m3 (limit 20 mg/m3) | D22: Explosion in furnace | G22: Shredding of waste increased
A24: Jan - Dec | B24: Data recalculated at the request of the Environment Agency and under review.
A26: *If the Environment Agency (EA) has given a Compliance Classification Scheme (CCS) score due to a permit non-compliance it should be entered here (CCS4 = No impact; CCS3 = Minor impact; CCS2 = Significant impact; CCS1 = Major impact). If the EA has not yet assessed a non-compliance which you have notified to them, these columns should be left blank. Enter N/A if no score was given for the root cause.
A28: Summary of any complaints received and actions to taken to resolve them.
A29: Date | B29: Summary of complaint [including Line/Reference] | E29: Reason (including whether substantiated by the operator or the EA) | H29: Measures taken to prevent reoccurrence
B30: NONE

Sheet Improvements
A1: =+'Cover Page'!$B$29 -> Annual Performance Report 2025 | E1: =+'Cover Page'!$B$33 -> Severn Waste Services Limited
A3: Summary of Plant Improvements
A5: Summary of any efficiency improvements that have been completed within the year.
A6: 1. Continual upgrade of refractory within the boiler 1st pass 2. Replacement of Secondary air ducting and nozzles 3. Replacement of Recirculation air ducting and nozzles
A16: Summary of any permit improvement conditions that have been completed within the year and the resulting environmental benefits.
A17: 1. Install of C14 analyser
A27: Summary of any changes to the plant or operating techniques which required a variation to the permit and a summary of the resulting environmental impact.
A28: None
A38: Summary of any other improvements made to the plant or planned to be made and a summary of the resulting environmental benefits.
A39: None

Sheet Public Liasion
A1: =+'Cover Page'!$B$29 -> Annual Performance Report 2025 | E1: =+'Cover Page'!$B$33 -> Severn Waste Services Limited
A3: Details of Public & Stakeholder Liaison
A5: Summary of events held during the reporting year.
A6: Date | C6: Description
A7: 2025-01-21 | C7: Public Site Tour
A9: 2025-03-18 | C9: Public Site Tour
A11: 2025-04-15 | C11: Public Site Tour
A13: 2025-05-20 | C13: Public Site Tour
A15: 2025-08-19 | C15: Public Site Tour
A17: 2025-10-14 | C17: Public Site Tour
A19: 2025-05-16 | C19: Community Liason Group
A21: 2025-12-02 | C21: Birmingham University - Student Visit
A24: List of events planned for next year
A25: Date | C25: Description
A26: Jan - Dec | C26: Public Site Tours
A28: 2026-12-01 | C28: Birmingham University - Student Visit
A37: If you wish to be involved in the public liaison programme, please contact _________________

Sheet CO2 N2O
A1: =+'Cover Page'!$B$29 -> Annual Performance Report 2025 | C1: =+'Cover Page'!$B$33 -> Severn Waste Services Limited
A3: Carbon dioxide emissions and biogenic content of waste inputs | F3: Notes:
A5: Carbon dioxide emissions (all types of plant)
A6: Annual mass of carbon dioxide released | C6: tonnes | D6: 116904.52
A7: Annual mass of carbon dioxide released per tonne of waste burned | C7: t CO2 / t waste | D7: =SUM(D6/'Operational Data'!G24) -> 0.5633645975 | F7: Note 1: All permits require operators to continuously monitor CO2 to EN14181 and flow to BS EN 16911-2 (unless otherwise agreed in writing). Operators must therefore use the results from these instruments to calculate their annual CO2 emissions. Where an operator does not have a flow meter calibrated to BS EN 16911-2, the averaged flow measurement from that year's periodic monitoring can be used instead. If the plant does not have calibrated CO2 CEMS, a suitably justified emissions factor can be used.
A8: Annual mass of carbon dioxide released per MWh of energy exported | C8: t CO2 / MWh export | D8: =SUM(D6/'Operational Data'!G28) -> 0.8246825201
A9: Description of how annual carbon dioxide mass emission has been calculated. See Note 1 | C9: Annual stack flow (kNm3) = operational hours x average hourly flow. CO2 volume = Average CO2 % x annual flow. CO2 mass = volume x density (1.28kg/Nm3)
A10: Nitrous oxide emissions (only plants which use ammonia or urea to abate NOx emissions)
A11: Annual mass emissions of nitrous oxide | C11: tonnes N2O | D11: 0.023
A12: Description of how annual nitrous oxide mass emission has been calculated See Note 2 | C12: Annual stack flow (m3) X N2O average concentration (m3) | F12: Note 2: All permits require operators to continuously monitor N2O to EN14181 and flow to BS EN 16911-2, unless otherwise agreed in writing. Operators must therefore use the results from these instruments to calculate their annual N2O emissions. Where an operator does not have a flow meter calibrated to BS EN 16911-2, the averaged flow measurement from periodic monitoring can be used instead. If the plant does not have calibrated N2O CEMS, data from periodic monitoring or a suitably justified emissions factor can be used instead.
A13: Total annual carbon dioxide + nitrous oxide emissions. See Note 3. | C13: tonnes CO2e | D13: =SUM(D11+D6) -> 116904.543 | F13: Note 3: Total annual carbon dioxide and nitrous oxide emissions reported as carbon dioxide equivalent where 1 tonne nitrous oxide is equivalent to 265 tonnes carbon dioxide.
A14: Biogenic CO2 emissions (See Note 4) | F14: Note 4: Only plants combusting residual municipal waste, refuse derived fuel or solid recovered fuel need complete this section.
A15: Percentage of total carbon dioxide emissions arising from biogenic waste | C15: % | D15: 0.5565
A16: No. of measurements undertaken | C16: Number | D16: 4
A17: Description of how percentage biogenic carbon dioxide emissions have been measured or calculated. See Note 5 | C17: Biogenic fraction by net calorific value assumed to be the same as the biogenic CO2 fraction of the total CO2 emissions from the plant. | F17: Note 5: The results from C14 sampling should be used if this is carried out at the plant (either via an installed sampler or from spot samples). Otherwise, as an approximation (and in lieu of any more accurate metrics which may be developed in future), the measured or estimated biogenic fraction by net calorific value (see Note 6) can be assumed to be the same as the biogenic CO2 fraction of the total CO2 emissions from the plant.
A18: Biogenic fraction of waste feedstock (See Note 4)
A19: Yearly average biogenic percentage of the waste by net calorific value (NCV) | C19: % | D19: 0.5565
A20: Description of how biogenic percentage (by NCV) has been calculated or estimated. See Note 6 | C20: Quarterly waste analysis is carried out by an external contractor. Reported data for % by CV of biogenic fraction has been used to attain an annual average. | F20: Note 6: If C14 sampling is carried out at the plant, the methodology set out in the embedded document entitled "Renewable Energy Association Energy Content of Fuels - Description of Method" embedded below can be used to calculate the biogenic percentage by net calorific value. Otherwise, data from waste sampling or BIOMA software can be used; or if none of these are available, an estimated figure with justification or a figure assumed on the basis of up-to-date industry data can be used.
A21: Yearly average biogenic percentage of the waste by mass | C21: % | D21: 0.6668
A22: If waste sampling undertaken, no. of samples used to ascertain average biogenic percentages above | C22: Number | D22: 4
A23: Description of how biogenic percentage (by mass) has been calculated or estimated. See Note 7 | C23: Quarterly waste analysis is carried out by an external contractor. Reported data for % by mass of biogenic fraction has been used to attain an annual average. | F23: Note 7: Where available, data from waste sampling should be used; otherwise, an estimated figure with justification can be used, or a figure assumed on the basis of up-to-date industry data.
B25: Comments:

Sheet Residues
A1: =+'Cover Page'!$B$29 -> Annual Performance Report 2025 | E1: =+'Cover Page'!$B$33 -> Severn Waste Services Limited
A3: Summary of Residue Handling for the reporting year
A5: Incinerator Bottom Ash (IBA) produced at EnviRecover is stockpiled at another facility operated by Severn Waste Services. This stockpile is processed by a third party on an annual basis to recover metals and produce IBAA aggregate. Air Pollution Control residues (APCr) are collected by road tanker, loaded directly from the APCr silo. The APCr was processed by Augean to produce R5 code structure containment at its Port Clarence Land Fill site. | K5: Include in here a summary of residue handling regimes and destinations
A28: Residue Quality Monitoring Requirements
A30: Summary of monitoring undertaken and compliance
A31: The sampling and analysis of IBA and APCr has been completed and reported at the required frequency. There were 24 IBA samples submitted for analysis and 4 APCr samples during the year. The laboratory results are reviewed and discussed during management meetings on a monthly basis. The results for the year demonstrate that our IBA continues to hold non-hazardous status. There were 3 minor exceedances which are detailed below. The APCr results demonstrate consistency and the parameters analysed are at levels which would be considered typical for EfW.
A38: Commentary on any specific events
A39: Date & Event | C39: Description
A40: 2025-05-19 | C40: Minor exceedance of the limit for HP14
A42: 2025-09-09 | C42: Minor exceedance of the limit for HP14
A44: 2025-10-06 | C44: Minor exceedance of the limit for HP14
A52: Residue Quality Monitoring Results
A53: Parameter (unit) | C53: Limit* | D53: Normal Operation
D54: Bottom ash | F54: APC Residues
A55: Loss on Ignition (average %) | C55: <5% | D55: 2.57
A56: Total Organic Carbon (average %) | C56: <3% | D56: 1.2
A57: No. of Assessments Undertaken | C57: --- | D57: 24 | F57: 4
A58: No. of Hazardous Results | C58: --- | D58: 3
A59: * The permit will specify a limit of either 5% loss on ignition or 3% total organic carbon. If both are measured anyway, please enter the results here, even where the limit does not apply.
A61: Comments :

Sheet Water
A1: =+'Cover Page'!$B$29 -> Annual Performance Report 2025 | E1: =+'Cover Page'!$B$33 -> Severn Waste Services Limited
A3: Emissions to Water
A5: Summary of monitoring undertaken and compliance
A6: There are no emissions to water.
A13: Commentary on any specific events
A14: Date & Event | C14: Description
A22: Emissions to Water / Sewer
A23: Parameter | D23: Monitoring Frequency | F23: Limit | G23: Target | H23: Max. | I23: Average

Sheet Air (periodic)
A1: =+'Cover Page'!$B$29 -> Annual Performance Report 2025 | E1: =+'Cover Page'!$B$33 -> Severn Waste Services Limited
A3: Emissions to Air (periodically monitored)
A5: Summary of monitoring undertaken, standards used and compliance | K5: Notes:
A6: Bi-annual stack emmissions testing has been carried out as specified in EnviRecover's Environmental Permit. | K6: Template may require adjustment for any bespoke monitoring requirements of permit - please also check that all default ELV values, reference periods and the stated oxygen reference value match those for your plant, and edit if necessary!
A9: Results of emissions to air that are periodically monitored - oxygen reference 11%
A10: Substance | C10: Ref. Period | D10: Emission Limit Value | F10: Average | K10: User to add additional tables as necessary, depending on whether quarterly or bi-annual reporting is required for the compliance year
F11: A1 | G11: A2 | H11: A3 | I11: A4 | J11: A5
A12: Hydrogen fluoride | C12: 1 hr | D12: 1 mg/m3 | F12: 0.0575
A13: Cd and Tl and their compounds | C13: 0.5-8hrs | D13: 0.02 mg/m3 | F13: 0.0107
A14: Hg and its compounds | C14: 0.5-8hrs | D14: 0.02 mg/m3 | F14: 0.0135
A15: Sb, As, Pb, Cr, Co, Cu, Mn, Ni, V and their compounds | C15: 0.5-8hrs | D15: 0.3 mg/m3 | F15: 0.016
A16: Dioxins & Furans (I-TEQ) | C16: 6-8hrs | D16: 0.06 ng/m3 | F16: 0.014
A17: PCBs (WHO-TEQ Humans / Mammals) | C17: 6-8hrs | D17: None set ng/m3 | F17: 0.0015
A18: PCBs (WHO-TEQ Fish) | C18: 6-8hrs | D18: None set ng/m3 | F18: 7.5e-05
A19: PCBs (WHO-TEQ Birds) | C19: 6-8hrs | D19: None set ng/m3 | F19: 0.0022
A20: Dioxins & Furans (WHO-TEQ Humans / Mammals) | C20: 6-8hrs | D20: None set ng/m3 | F20: 0.092
A21: Dioxins & Furans (WHO-TEQ Fish) | C21: 6-8hrs | D21: None set ng/m3 | F21: 0.014
A22: Dioxins & Furans (WHO-TEQ Birds) | C22: 6-8hrs | D22: None set ng/m3 | F22: 0.029
A23: Anthanthrene | C23: 6-8hrs | D23: None set µg/m3 | F23: 0.001
A24: Benzo(a)anthracene | C24: 6-8hrs | D24: None set µg/m3 | F24: 0.001
A25: Benzo(a)pyrene | C25: 6-8hrs | D25: None set µg/m3 | F25: 0.001
A26: Benzo(b)fluoranthene | C26: 6-8hrs | D26: None set µg/m3 | F26: 0.001
A27: Benzo(b)naptho(2,1-d) thiophene | C27: 6-8hrs | D27: None set µg/m3 | F27: 0.001
A28: Benzo(c)phenanthrene | C28: 6-8hrs | D28: None set µg/m3 | F28: 0.001
A29: Benzo(ghi)perylene | C29: 6-8hrs | D29: None set µg/m3 | F29: 0.001
A30: Benzo(k)fluoranthene | C30: 6-8hrs | D30: None set µg/m3 | F30: 0.001
A31: Cholanthrene | C31: 6-8hrs | D31: None set µg/m3 | F31: 0.001
A32: Chrysene | C32: 6-8hrs | D32: None set µg/m3 | F32: 0.001
A33: Cyclopenta(cd)pyrene | C33: 6-8hrs | D33: None set µg/m3 | F33: 0.001
A34: Dibenzo(ai)pyrene | C34: 6-8hrs | D34: None set µg/m3 | F34: 0.001
A35: Dibenzo(ah)anthracene | C35: 6-8hrs | D35: None set µg/m3 | F35: 0.001
A36: Fluoranthene | C36: 6-8hrs | D36: None set µg/m3 | F36: 0.022
A37: Indeno(123-cd) pyrene | C37: 6-8hrs | D37: None set µg/m3 | F37: 0.001
A38: Naphthalene | C38: 6-8hrs | D38: None set µg/m3 | F38: 0.07
A39: Comments :

Sheet Air (CEMS)
A1: =+'Cover Page'!$B$29 -> Annual Performance Report 2025 | I1: =+'Cover Page'!$B$33 -> Severn Waste Services Limited
A3: Emissions to Air (continuously monitored)
N4: Notes:
A5: Summary of monitoring undertaken, standards used and compliance | N5: Template may require adjustment for any bespoke monitoring requirements of permit
A6: CEMs monitoring is carried out following the quality assurance procedures as stated in BS EN 14181. | N6: Please check that all default ELV values match those for your plant and edit if necessary!
N7: Report to 1 decimal place
A9: Results of emissions to air that are continuously monitored (maximum and average values for each line) - oxygen reference 11%
A10: Substance | B10: Reference Period | C10: Emission Limit Value | D10: A1 | F10: A2 | H10: A3 | J10: A4 | L10: A5
D11: Max. | E11: Avg. | F11: Max. | G11: Avg. | H11: Max. | I11: Avg. | J11: Max. | K11: Avg. | L11: Max. | M11: Avg.
A12: Oxides of nitrogen | B12: Daily mean | C12: 180 mg/m3 | D12: 202 | E12: 180.4
B13: ½ hourly mean | C13: 400 mg/m3 | D13: 273 | E13: 180.4
A14: Particulates | B14: Daily mean | C14: 5 mg/m3 | D14: 3.2 | E14: 0.9
B15: ½ hourly mean | C15: 30 mg/m3 | D15: 7 | E15: 0.9
A16: Total Organic Carbon | B16: Daily mean | C16: 10 mg/m3 | D16: 1.3 | E16: 0.6
B17: ½ hourly mean | C17: 20 mg/m3 | D17: 25.3 | E17: 0.6
A18: Hydrogen chloride | B18: Daily mean | C18: 8 mg/m3 | D18: 8 | E18: 3.2
B19: ½ hourly mean | C19: 60 mg/m3 | D19: 73 | E19: 3.2
A20: Sulphur dioxide | B20: Daily mean | C20: 40 mg/m3 | D20: 29.1 | E20: 0.6
B21: ½ hourly mean | C21: 200 mg/m3 | D21: 448 | E21: 0.6
A22: Carbon monoxide | B22: Daily mean | C22: 50 mg/m3 | D22: 16.9 | E22: 4.4
B23: 95%ile 10-min avg * | C23: 150 mg/m3 * | D23: 70 | E23: 4.4
A24: Ammonia | B24: Daily mean | C24: 15 mg/m3 | D24: 3.8 | E24: 0.8
A25: * = delete as appropriate, depending on whether your plant has half-hourly or 10-min CO ELVs
A26: Comments :

Sheet HCl
A1: =+'Cover Page'!$B$29 -> Annual Performance Report 2025 | E1: =+'Cover Page'!$B$33 -> Severn Waste Services Limited
A3: Monitoring of Hydrogen Chloride emissions | D3: Whole Installation | G3: See Notes in Cell Q3 | J3: =+A3 -> Monitoring of Hydrogen Chloride emissions | N3: Per Combustion Line | Q3: Notes:
Q4: User to add logic to complete Whole installation, Table A5:G18. From the data in Per Combustion Line, Table J6:O79, subject to No. of lines installed
A5: =+'Cover Page'!C39 -> 2025 | B5: 1/2 Hourly Reference Periods | E5: Daily Reference Periods
A6: mg/Nm3 | B6: 1/2 hourly HCl ELV | C6: Monthly mean of half-hourly averages | D6: Highest half- hourly average | E6: Daily HCl ELV | F6: Monthly mean of daily averages | G6: Highest daily average | J6: =+A5 -> 2025 | K6: mg/Nm3 | L6: Monthly mean of half-hourly averages | M6: Highest half- hourly average | N6: Monthly mean of daily averages | O6: Highest daily average
A7: Jan | B7: 60 | C7: 3 | D7: 19 | E7: 8 | F7: 3 | G7: 4 | J7: A1 | K7: Jan
A8: Feb | B8: 60 | C8: 3 | D8: 7 | E8: 8 | F8: 3 | G8: 5 | K8: Feb
A9: Mar | B9: 60 | C9: 3 | D9: 7 | E9: 8 | F9: 3 | G9: 4 | K9: Mar | Q9: Whole Installation table A5:G18:
A10: Apr | B10: 60 | C10: 3 | D10: 7 | E10: 8 | F10: 3 | G10: 3 | K10: Apr | Q10: Mean: for 1/2 hourly and daily periods calculate mean of values across all operational combustion lines for the month
A11: May | B11: 60 | C11: 3 | D11: 21 | E11: 8 | F11: 3 | G11: 4 | K11: May
A12: Jun | B12: 60 | C12: 3 | D12: 73 | E12: 8 | F12: 3 | G12: 8 | K12: Jun
A13: Jul | B13: 60 | C13: 3 | D13: 6 | E13: 8 | F13: 3 | G13: 6 | K13: Jul | Q13: Maximum: for 1/2 hourly and daily periods use the highest value across all operational combustion lines for the month
A14: Aug | B14: 60 | C14: 4 | D14: 9 | E14: 8 | F14: 4 | G14: 4 | K14: Aug
A15: Sep | B15: 60 | C15: 4 | D15: 15 | E15: 8 | F15: 4 | G15: 4 | K15: Sep
A16: Oct | B16: 60 | C16: 4 | D16: 8 | E16: 8 | F16: 4 | G16: 6 | K16: Oct
A17: Nov | B17: 60 | C17: 3 | D17: 7 | E17: 8 | F17: 3 | G17: 4 | K17: Nov
A18: Dec | B18: 60 | C18: 3 | D18: 6 | E18: 8 | F18: 3 | G18: 4 | K18: Dec
K19: Annual | L19: =AVERAGE(L7:L18) ->  | M19: =MAX(M7:M18) -> 0 | N19: =AVERAGE(N7:N18) ->  | O19: =MAX(O7:O18) -> 0
J21: =+A5 -> 2025 | K21: mg/Nm3 | L21: Monthly mean of half-hourly averages | M21: Highest half- hourly average | N21: Monthly mean of daily averages | O21: Highest daily average
J22: A2 | K22: Jan
K23: Feb
K24: Mar
K25: Apr
K26: May
K27: Jun
K28: Jul
K29: Aug
K30: Sep
K31: Oct
K32: Nov
K33: Dec
K34: Annual | L34: =AVERAGE(L22:L33) ->  | M34: =MAX(M22:M33) -> 0 | N34: =AVERAGE(N22:N33) ->  | O34: =MAX(O22:O33) -> 0
J36: =+A5 -> 2025 | K36: mg/Nm3 | L36: Monthly mean of half-hourly averages | M36: Highest half- hourly average | N36: Monthly mean of daily averages | O36: Highest daily average
J37: A3 | K37: Jan
K38: Feb
K39: Mar
K40: Apr
K41: May
K42: Jun
K43: Jul
K44: Aug
K45: Sep
K46: Oct
K47: Nov
A48: Comments : | K48: Dec
A49: HCl half-hourly exceedance in June occurred during abnormal operations. | K49: Annual | L49: =AVERAGE(L37:L48) ->  | M49: =MAX(M37:M48) -> 0 | N49: =AVERAGE(N37:N48) ->  | O49: =MAX(O37:O48) -> 0
J51: =+A5 -> 2025 | K51: mg/Nm3 | L51: Monthly mean of half-hourly averages | M51: Highest half- hourly average | N51: Monthly mean of daily averages | O51: Highest daily average
J52: A4 | K52: Jan
K53: Feb
K54: Mar
K55: Apr
K56: May
K57: Jun
K58: Jul
K59: Aug
K60: Sep
K61: Oct
K62: Nov
K63: Dec
K64: Annual | L64: =AVERAGE(L52:L63) ->  | M64: =MAX(M52:M63) -> 0 | N64: =AVERAGE(N52:N63) ->  | O64: =MAX(O52:O63) -> 0
J66: =+A5 -> 2025 | K66: mg/Nm3 | L66: Monthly mean of half-hourly averages | M66: Highest half- hourly average | N66: Monthly mean of daily averages | O66: Highest daily average
J67: A5 | K67: Jan
K68: Feb
K69: Mar
K70: Apr
K71: May
K72: Jun
K73: Jul
K74: Aug
K75: Sep
K76: Oct
K77: Nov
K78: Dec
K79: Annual | L79: =AVERAGE(L67:L78) ->  | M79: =MAX(M67:M78) -> 0 | N79: =AVERAGE(N67:N78) ->  | O79: =MAX(O67:O78) -> 0

Sheet SO2
A1: =+'Cover Page'!$B$29 -> Annual Performance Report 2025 | E1: =+'Cover Page'!$B$33 -> Severn Waste Services Limited
A3: Monitoring of Sulphur dioxide emissions | D3: Whole Installation | G3: See Notes in Cell Q3 | J3: =+A3 -> Monitoring of Sulphur dioxide emissions | N3: Per Combustion Line | Q3: Notes:
Q4: User to add logic to complete Whole installation, Table A5:G18. From the data in Per Combustion Line, Table J6:O79, subject to No. of lines installed
A5: =+'Cover Page'!C39 -> 2025 | B5: 1/2 Hourly Reference Periods | E5: Daily Reference Periods
A6: mg/Nm3 | B6: 1/2 hourly SO2 ELV | C6: Monthly mean of half-hourly averages | D6: Highest half- hourly average | E6: Daily SO2 ELV | F6: Monthly mean of daily averages | G6: Highest daily average | J6: =+A5 -> 2025 | K6: mg/Nm3 | L6: Monthly mean of half-hourly averages | M6: Highest half- hourly average | N6: Monthly mean of daily averages | O6: Highest daily average
A7: Jan | B7: 200 | C7: 1 | D7: 12 | E7: 40 | F7: 1 | G7: 2 | J7: A1 | K7: Jan
A8: Feb | B8: 200 | C8: 0 | D8: 20 | E8: 40 | F8: 0 | G8: 2 | K8: Feb
A9: Mar | B9: 200 | C9: 1 | D9: 22 | E9: 40 | F9: 1 | G9: 2 | K9: Mar | Q9: Whole Installation table A5:G18:
A10: Apr | B10: 200 | C10: 1 | D10: 43 | E10: 40 | F10: 1 | G10: 2 | K10: Apr | Q10: Mean: for 1/2 hourly and daily periods calculate mean of values across all operational combustion lines for the month
A11: May | B11: 200 | C11: 2 | D11: 83 | E11: 40 | F11: 2 | G11: 5 | K11: May
A12: Jun | B12: 200 | C12: 1 | D12: 448 | E12: 40 | F12: 1 | G12: 29 | K12: Jun
A13: Jul | B13: 200 | C13: 0 | D13: 31 | E13: 40 | F13: 0 | G13: 2 | K13: Jul | Q13: Maximum: for 1/2 hourly and daily periods use the highest value across all operational combustion lines for the month
A14: Aug | B14: 200 | C14: 0 | D14: 30 | E14: 40 | F14: 0 | G14: 2 | K14: Aug
A15: Sep | B15: 200 | C15: 0 | D15: 65 | E15: 40 | F15: 0 | G15: 2 | K15: Sep
A16: Oct | B16: 200 | C16: 0 | D16: 8 | E16: 40 | F16: 0 | G16: 0 | K16: Oct
A17: Nov | B17: 200 | C17: 0 | D17: 2 | E17: 40 | F17: 0 | G17: 0 | K17: Nov
A18: Dec | B18: 200 | C18: 0 | D18: 3 | E18: 40 | F18: 0 | G18: 1 | K18: Dec
K19: Annual | L19: =AVERAGE(L7:L18) ->  | M19: =MAX(M7:M18) -> 0 | N19: =AVERAGE(N7:N18) ->  | O19: =MAX(O7:O18) -> 0
J21: =+A5 -> 2025 | K21: mg/Nm3 | L21: Monthly mean of half-hourly averages | M21: Highest half- hourly average | N21: Monthly mean of daily averages | O21: Highest daily average
J22: A2 | K22: Jan
K23: Feb
K24: Mar
K25: Apr
K26: May
K27: Jun
K28: Jul
K29: Aug
K30: Sep
K31: Oct
K32: Nov
K33: Dec
K34: Annual | L34: =AVERAGE(L22:L33) ->  | M34: =MAX(M22:M33) -> 0 | N34: =AVERAGE(N22:N33) ->  | O34: =MAX(O22:O33) -> 0
J36: =+A5 -> 2025 | K36: mg/Nm3 | L36: Monthly mean of half-hourly averages | M36: Highest half- hourly average | N36: Monthly mean of daily averages | O36: Highest daily average
J37: A3 | K37: Jan
K38: Feb
K39: Mar
K40: Apr
K41: May
K42: Jun
K43: Jul
K44: Aug
K45: Sep
K46: Oct
K47: Nov
A48: Comments : | K48: Dec
A49: SO2 half-hourly exceedance in June occurred during abnormal operations. | K49: Annual | L49: =AVERAGE(L37:L48) ->  | M49: =MAX(M37:M48) -> 0 | N49: =AVERAGE(N37:N48) ->  | O49: =MAX(O37:O48) -> 0
J51: =+A5 -> 2025 | K51: mg/Nm3 | L51: Monthly mean of half-hourly averages | M51: Highest half- hourly average | N51: Monthly mean of daily averages | O51: Highest daily average
J52: A4 | K52: Jan
K53: Feb
K54: Mar
K55: Apr
K56: May
K57: Jun
K58: Jul
K59: Aug
K60: Sep
K61: Oct
K62: Nov
K63: Dec
K64: Annual | L64: =AVERAGE(L52:L63) ->  | M64: =MAX(M52:M63) -> 0 | N64: =AVERAGE(N52:N63) ->  | O64: =MAX(O52:O63) -> 0
J66: =+A5 -> 2025 | K66: mg/Nm3 | L66: Monthly mean of half-hourly averages | M66: Highest half- hourly average | N66: Monthly mean of daily averages | O66: Highest daily average
J67: A5 | K67: Jan
K68: Feb
K69: Mar
K70: Apr
K71: May
K72: Jun
K73: Jul
K74: Aug
K75: Sep
K76: Oct
K77: Nov
K78: Dec
K79: Annual | L79: =AVERAGE(L67:L78) ->  | M79: =MAX(M67:M78) -> 0 | N79: =AVERAGE(N67:N78) ->  | O79: =MAX(O67:O78) -> 0

Sheet NOx
A1: =+'Cover Page'!$B$29 -> Annual Performance Report 2025 | E1: =+'Cover Page'!$B$33 -> Severn Waste Services Limited
A3: Monitoring of Oxides of Nitrogen emissions | D3: Whole Installation | G3: See Notes in Cell Q3 | J3: =+A3 -> Monitoring of Oxides of Nitrogen emissions | N3: Per Combustion Line | Q3: Notes:
Q4: User to add logic to complete Whole installation, Table A5:G18. From the data in Per Combustion Line, Table J6:O79, subject to No. of lines installed
A5: =+'Cover Page'!C39 -> 2025 | B5: 1/2 Hourly Reference Periods | E5: Daily Reference Periods
A6: mg/Nm3 | B6: 1/2 hourly NOx ELV | C6: Monthly mean of half-hourly averages | D6: Highest half- hourly average | E6: Daily NOx ELV | F6: Monthly mean of daily averages | G6: Highest daily average | J6: =+A5 -> 2025 | K6: mg/Nm3 | L6: Monthly mean of half-hourly averages | M6: Highest half- hourly average | N6: Monthly mean of daily averages | O6: Highest daily average
A7: Jan | B7: 400 | C7: 177 | D7: 226 | E7: 180 | F7: 177 | G7: 194 | J7: A1 | K7: Jan
A8: Feb | B8: 400 | C8: 180 | D8: 230 | E8: 180 | F8: 180 | G8: 195 | K8: Feb
A9: Mar | B9: 400 | C9: 185 | D9: 239 | E9: 180 | F9: 185 | G9: 196 | K9: Mar | Q9: Whole Installation table A5:G18:
A10: Apr | B10: 400 | C10: 190 | D10: 232 | E10: 180 | F10: 190 | G10: 201 | K10: Apr | Q10: Mean: for 1/2 hourly and daily periods calculate mean of values across all operational combustion lines for the month
A11: May | B11: 400 | C11: 186 | D11: 250 | E11: 180 | F11: 186 | G11: 196 | K11: May
A12: Jun | B12: 400 | C12: 185 | D12: 236 | E12: 180 | F12: 185 | G12: 200 | K12: Jun
A13: Jul | B13: 400 | C13: 198 | D13: 230 | E13: 180 | F13: 198 | G13: 201 | K13: Jul | Q13: Maximum: for 1/2 hourly and daily periods use the highest value across all operational combustion lines for the month
A14: Aug | B14: 400 | C14: 196 | D14: 228 | E14: 180 | F14: 196 | G14: 202 | K14: Aug
A15: Sep | B15: 400 | C15: 197 | D15: 236 | E15: 180 | F15: 197 | G15: 209 | K15: Sep
A16: Oct | B16: 400 | C16: 176 | D16: 200 | E16: 180 | F16: 176 | G16: 176 | K16: Oct
A17: Nov | B17: 400 | C17: 168 | D17: 201 | E17: 180 | F17: 168 | G17: 169 | K17: Nov
A18: Dec | B18: 400 | C18: 167 | D18: 237 | E18: 180 | F18: 167 | G18: 191 | K18: Dec
K19: Annual | L19: =AVERAGE(L7:L18) ->  | M19: =MAX(M7:M18) -> 0 | N19: =AVERAGE(N7:N18) ->  | O19: =MAX(O7:O18) -> 0
J21: =+A5 -> 2025 | K21: mg/Nm3 | L21: Monthly mean of half-hourly averages | M21: Highest half- hourly average | N21: Monthly mean of daily averages | O21: Highest daily average
J22: A2 | K22: Jan
K23: Feb
K24: Mar
K25: Apr
K26: May
K27: Jun
K28: Jul
K29: Aug
K30: Sep
K31: Oct
K32: Nov
K33: Dec
K34: Annual | L34: =AVERAGE(L22:L33) ->  | M34: =MAX(M22:M33) -> 0 | N34: =AVERAGE(N22:N33) ->  | O34: =MAX(O22:O33) -> 0
J36: =+A5 -> 2025 | K36: mg/Nm3 | L36: Monthly mean of half-hourly averages | M36: Highest half- hourly average | N36: Monthly mean of daily averages | O36: Highest daily average
J37: A3 | K37: Jan
K38: Feb
K39: Mar
K40: Apr
K41: May
K42: Jun
K43: Jul
K44: Aug
K45: Sep
K46: Oct
K47: Nov
A48: Comments : | K48: Dec
K49: Annual | L49: =AVERAGE(L37:L48) ->  | M49: =MAX(M37:M48) -> 0 | N49: =AVERAGE(N37:N48) ->  | O49: =MAX(O37:O48) -> 0
J51: =+A5 -> 2025 | K51: mg/Nm3 | L51: Monthly mean of half-hourly averages | M51: Highest half- hourly average | N51: Monthly mean of daily averages | O51: Highest daily average
J52: A4 | K52: Jan
K53: Feb
K54: Mar
K55: Apr
K56: May
K57: Jun
K58: Jul
K59: Aug
K60: Sep
K61: Oct
K62: Nov
K63: Dec
K64: Annual | L64: =AVERAGE(L52:L63) ->  | M64: =MAX(M52:M63) -> 0 | N64: =AVERAGE(N52:N63) ->  | O64: =MAX(O52:O63) -> 0
J66: =+A5 -> 2025 | K66: mg/Nm3 | L66: Monthly mean of half-hourly averages | M66: Highest half- hourly average | N66: Monthly mean of daily averages | O66: Highest daily average
J67: A5 | K67: Jan
K68: Feb
K69: Mar
K70: Apr
K71: May
K72: Jun
K73: Jul
K74: Aug
K75: Sep
K76: Oct
K77: Nov
K78: Dec
K79: Annual | L79: =AVERAGE(L67:L78) ->  | M79: =MAX(M67:M78) -> 0 | N79: =AVERAGE(N67:N78) ->  | O79: =MAX(O67:O78) -> 0

Sheet TOC
A1: =+'Cover Page'!$B$29 -> Annual Performance Report 2025 | E1: =+'Cover Page'!$B$33 -> Severn Waste Services Limited
A3: Monitoring of Total organic carbon emissions | D3: Whole Installation | G3: See Notes in Cell Q3 | J3: =+A3 -> Monitoring of Total organic carbon emissions | N3: Per Combustion Line | Q3: Notes:
Q4: User to add logic to complete Whole installation, Table A5:G18. From the data in Per Combustion Line, Table J6:O79, subject to No. of lines installed
A5: =+'Cover Page'!C39 -> 2025 | B5: 1/2 Hourly Reference Periods | E5: Daily Reference Periods
A6: mg/Nm3 | B6: 1/2 hourly TOC ELV | C6: Monthly mean of half-hourly averages | D6: Highest half- hourly average | E6: Daily TOC ELV | F6: Monthly mean of daily averages | G6: Highest daily average | J6: =+A5 -> 2025 | K6: mg/Nm3 | L6: Monthly mean of half-hourly averages | M6: Highest half- hourly average | N6: Monthly mean of daily averages | O6: Highest daily average
A7: Jan | B7: 20 | C7: 1 | D7: 14 | E7: 10 | F7: 1 | G7: 1 | J7: A1 | K7: Jan
A8: Feb | B8: 20 | C8: 1 | D8: 6 | E8: 10 | F8: 1 | G8: 1 | K8: Feb
A9: Mar | B9: 20 | C9: 0 | D9: 13 | E9: 10 | F9: 0 | G9: 1 | K9: Mar | Q9: Whole Installation table A5:G18:
A10: Apr | B10: 20 | C10: 0 | D10: 15 | E10: 10 | F10: 0 | G10: 1 | K10: Apr | Q10: Mean: for 1/2 hourly and daily periods calculate mean of values across all operational combustion lines for the month
A11: May | B11: 20 | C11: 0 | D11: 11 | E11: 10 | F11: 0 | G11: 1 | K11: May
A12: Jun | B12: 20 | C12: 0 | D12: 9 | E12: 10 | F12: 0 | G12: 1 | K12: Jun
A13: Jul | B13: 20 | C13: 1 | D13: 5 | E13: 10 | F13: 1 | G13: 1 | K13: Jul | Q13: Maximum: for 1/2 hourly and daily periods use the highest value across all operational combustion lines for the month
A14: Aug | B14: 20 | C14: 0 | D14: 3 | E14: 10 | F14: 0 | G14: 1 | K14: Aug
A15: Sep | B15: 20 | C15: 1 | D15: 6 | E15: 10 | F15: 1 | G15: 1 | K15: Sep
A16: Oct | B16: 20 | C16: 1 | D16: 25 | E16: 10 | F16: 1 | G16: 1 | K16: Oct
A17: Nov | B17: 20 | C17: 1 | D17: 6 | E17: 10 | F17: 1 | G17: 1 | K17: Nov
A18: Dec | B18: 20 | C18: 0 | D18: 9 | E18: 10 | F18: 0 | G18: 1 | K18: Dec
K19: Annual | L19: =AVERAGE(L7:L18) ->  | M19: =MAX(M7:M18) -> 0 | N19: =AVERAGE(N7:N18) ->  | O19: =MAX(O7:O18) -> 0
J21: =+A5 -> 2025 | K21: mg/Nm3 | L21: Monthly mean of half-hourly averages | M21: Highest half- hourly average | N21: Monthly mean of daily averages | O21: Highest daily average
J22: A2 | K22: Jan
K23: Feb
K24: Mar
K25: Apr
K26: May
K27: Jun
K28: Jul
K29: Aug
K30: Sep
K31: Oct
K32: Nov
K33: Dec
K34: Annual | L34: =AVERAGE(L22:L33) ->  | M34: =MAX(M22:M33) -> 0 | N34: =AVERAGE(N22:N33) ->  | O34: =MAX(O22:O33) -> 0
J36: =+A5 -> 2025 | K36: mg/Nm3 | L36: Monthly mean of half-hourly averages | M36: Highest half- hourly average | N36: Monthly mean of daily averages | O36: Highest daily average
J37: A3 | K37: Jan
K38: Feb
K39: Mar
K40: Apr
K41: May
K42: Jun
K43: Jul
K44: Aug
K45: Sep
K46: Oct
K47: Nov
A48: Comments : | K48: Dec
A49: Schedule 5 submitted for the TOC half hourly exceedance in October. | K49: Annual | L49: =AVERAGE(L37:L48) ->  | M49: =MAX(M37:M48) -> 0 | N49: =AVERAGE(N37:N48) ->  | O49: =MAX(O37:O48) -> 0
J51: =+A5 -> 2025 | K51: mg/Nm3 | L51: Monthly mean of half-hourly averages | M51: Highest half- hourly average | N51: Monthly mean of daily averages | O51: Highest daily average
J52: A4 | K52: Jan
K53: Feb
K54: Mar
K55: Apr
K56: May
K57: Jun
K58: Jul
K59: Aug
K60: Sep
K61: Oct
K62: Nov
K63: Dec
K64: Annual | L64: =AVERAGE(L52:L63) ->  | M64: =MAX(M52:M63) -> 0 | N64: =AVERAGE(N52:N63) ->  | O64: =MAX(O52:O63) -> 0
J66: =+A5 -> 2025 | K66: mg/Nm3 | L66: Monthly mean of half-hourly averages | M66: Highest half- hourly average | N66: Monthly mean of daily averages | O66: Highest daily average
J67: A5 | K67: Jan
K68: Feb
K69: Mar
K70: Apr
K71: May
K72: Jun
K73: Jul
K74: Aug
K75: Sep
K76: Oct
K77: Nov
K78: Dec
K79: Annual | L79: =AVERAGE(L67:L78) ->  | M79: =MAX(M67:M78) -> 0 | N79: =AVERAGE(N67:N78) ->  | O79: =MAX(O67:O78) -> 0

Sheet Particulates
A1: =+'Cover Page'!$B$29 -> Annual Performance Report 2025 | E1: =+'Cover Page'!$B$33 -> Severn Waste Services Limited
A3: Monitoring of Particulate matter emissions | D3: Whole Installation | G3: See Notes in Cell Q3 | J3: =+A3 -> Monitoring of Particulate matter emissions | N3: Per Combustion Line | Q3: Notes:
A5: =+'Cover Page'!C39 -> 2025 | B5: 1/2 Hourly Reference Periods | E5: Daily Reference Periods | Q5: User to add logic to complete Whole installation, Table A5:G18. From the data in Per Combustion Line, Table J6:O79, subject to No. of lines installed
A6: mg/Nm3 | B6: 1/2 hourly PM ELV | C6: Monthly mean of half-hourly averages | D6: Highest half- hourly average | E6: Daily PM ELV | F6: Monthly mean of daily averages | G6: Highest daily average | J6: =+A5 -> 2025 | K6: mg/Nm3 | L6: Monthly mean of half-hourly averages | M6: Highest half- hourly average | N6: Monthly mean of daily averages | O6: Highest daily average
A7: Jan | B7: 30 | C7: 2 | D7: 7 | E7: 5 | F7: 2 | G7: 3 | J7: A1 | K7: Jan
A8: Feb | B8: 30 | C8: 0 | D8: 1 | E8: 5 | F8: 0 | G8: 1 | K8: Feb
A9: Mar | B9: 30 | C9: 1 | D9: 2 | E9: 5 | F9: 1 | G9: 1 | K9: Mar
A10: Apr | B10: 30 | C10: 1 | D10: 2 | E10: 5 | F10: 1 | G10: 1 | K10: Apr | Q10: Whole Installation table A5:G18:
A11: May | B11: 30 | C11: 0 | D11: 1 | E11: 5 | F11: 0 | G11: 1 | K11: May | Q11: Mean: for 1/2 hourly and daily periods calculate mean of values across all operational combustion lines for the month
A12: Jun | B12: 30 | C12: 0 | D12: 1 | E12: 5 | F12: 0 | G12: 1 | K12: Jun
A13: Jul | B13: 30 | C13: 0 | D13: 2 | E13: 5 | F13: 0 | G13: 0 | K13: Jul
A14: Aug | B14: 30 | C14: 0 | D14: 2 | E14: 5 | F14: 0 | G14: 1 | K14: Aug | Q14: Maximum: for 1/2 hourly and daily periods use the highest value across all operational combustion lines for the month
A15: Sep | B15: 30 | C15: 1 | D15: 1 | E15: 5 | F15: 1 | G15: 1 | K15: Sep
A16: Oct | B16: 30 | C16: 1 | D16: 3 | E16: 5 | F16: 1 | G16: 2 | K16: Oct
A17: Nov | B17: 30 | C17: 2 | D17: 4 | E17: 5 | F17: 2 | G17: 2 | K17: Nov
A18: Dec | B18: 30 | C18: 1 | D18: 3 | E18: 5 | F18: 1 | G18: 2 | K18: Dec
K19: Annual | L19: =AVERAGE(L7:L18) ->  | M19: =MAX(M7:M18) -> 0 | N19: =AVERAGE(N7:N18) ->  | O19: =MAX(O7:O18) -> 0
J21: =+A5 -> 2025 | K21: mg/Nm3 | L21: Monthly mean of half-hourly averages | M21: Highest half- hourly average | N21: Monthly mean of daily averages | O21: Highest daily average
J22: A2 | K22: Jan
K23: Feb
K24: Mar
K25: Apr
K26: May
K27: Jun
K28: Jul
K29: Aug
K30: Sep
K31: Oct
K32: Nov
K33: Dec
K34: Annual | L34: =AVERAGE(L22:L33) ->  | M34: =MAX(M22:M33) -> 0 | N34: =AVERAGE(N22:N33) ->  | O34: =MAX(O22:O33) -> 0
J36: =+A5 -> 2025 | K36: mg/Nm3 | L36: Monthly mean of half-hourly averages | M36: Highest half- hourly average | N36: Monthly mean of daily averages | O36: Highest daily average
J37: A3 | K37: Jan
K38: Feb
K39: Mar
K40: Apr
K41: May
K42: Jun
K43: Jul
K44: Aug
K45: Sep
K46: Oct
K47: Nov
A48: Comments : | K48: Dec
K49: Annual | L49: =AVERAGE(L37:L48) ->  | M49: =MAX(M37:M48) -> 0 | N49: =AVERAGE(N37:N48) ->  | O49: =MAX(O37:O48) -> 0
J51: =+A5 -> 2025 | K51: mg/Nm3 | L51: Monthly mean of half-hourly averages | M51: Highest half- hourly average | N51: Monthly mean of daily averages | O51: Highest daily average
J52: A4 | K52: Jan
K53: Feb
K54: Mar
K55: Apr
K56: May
K57: Jun
K58: Jul
K59: Aug
K60: Sep
K61: Oct
K62: Nov
K63: Dec
K64: Annual | L64: =AVERAGE(L52:L63) ->  | M64: =MAX(M52:M63) -> 0 | N64: =AVERAGE(N52:N63) ->  | O64: =MAX(O52:O63) -> 0
J66: =+A5 -> 2025 | K66: mg/Nm3 | L66: Monthly mean of half-hourly averages | M66: Highest half- hourly average | N66: Monthly mean of daily averages | O66: Highest daily average
J67: A5 | K67: Jan
K68: Feb
K69: Mar
K70: Apr
K71: May
K72: Jun
K73: Jul
K74: Aug
K75: Sep
K76: Oct
K77: Nov
K78: Dec
K79: Annual | L79: =AVERAGE(L67:L78) ->  | M79: =MAX(M67:M78) -> 0 | N79: =AVERAGE(N67:N78) ->  | O79: =MAX(O67:O78) -> 0

Sheet CO 95% 10 min
A1: =+'Cover Page'!$B$29 -> Annual Performance Report 2025 | E1: =+'Cover Page'!$B$33 -> Severn Waste Services Limited
A3: Monitoring of Carbon Monoxide (10-minute avg) | E3: Whole Installation | H3: See Notes in Cell S3 | J3: =+A3 -> Monitoring of Carbon Monoxide (10-minute avg) | O3: Per Combustion Line | Q3: Notes: | S3: Notes:
S5: User to add logic to complete Whole installation, Table A5:H18. From the data in Per Combustion Line, Table K6:Q79, subject to No. of lines installed
A6: =+'Cover Page'!C39 -> 2025 | B6: 10-minute Reference Periods | F6: Daily Reference Periods
A7: mg/Nm3 | B7: 95%ile 10-min avg CO ELV | C7: Highest daily 95%ile 10-min average | D7: Monthly mean of 10-min averages | E7: Highest 10-min average | F7: Daily CO ELV | G7: Monthly mean of daily averages | H7: Highest daily average | K7: =+A6 -> 2025 | L7: mg/Nm3 | M7: Highest daily 95%ile 10-min average | N7: Monthly mean of 10-min averages | O7: Highest 10-min average | P7: Monthly mean of daily averages | Q7: Highest daily average
A8: Jan | B8: 150 | C8: 37 | D8: 6 | E8: 696 | F8: 50 | G8: 6 | H8: 10 | K8: A1 | L8: Jan
A9: Feb | B9: =+B8 -> 150 | C9: 22 | D9: 4 | E9: 431 | F9: =+F8 -> 50 | G9: 4 | H9: 10 | L9: Feb
A10: Mar | B10: =+B9 -> 150 | C10: 23 | D10: 5 | E10: 636 | F10: =+F9 -> 50 | G10: 5 | H10: 13 | L10: Mar | S10: Whole Installation table A5:H18:
A11: Apr | B11: 150 | C11: 25 | D11: 5 | E11: 753 | F11: 50 | G11: 5 | H11: 10 | L11: Apr | S11: Mean: for 10-min and daily periods use average of all operational combustion lines.
A12: May | B12: 150 | C12: 12 | D12: 5 | E12: 1364 | F12: 50 | G12: 5 | H12: 15 | L12: May
A13: Jun | B13: 150 | C13: 31 | D13: 4 | E13: 557 | F13: 50 | G13: 4 | H13: 9 | L13: Jun
A14: Jul | B14: 150 | C14: 26 | D14: 4 | E14: 876 | F14: 50 | G14: 4 | H14: 8 | L14: Jul | S14: Maximum: for 10-min and daily periods use the highest of all operational combustion lines in any month.
A15: Aug | B15: 150 | C15: 5 | D15: 3 | E15: 350 | F15: 50 | G15: 3 | H15: 7 | L15: Aug
A16: Sep | B16: 150 | C16: 7 | D16: 2 | E16: 492 | F16: 50 | G16: 2 | H16: 5 | L16: Sep
A17: Oct | B17: 150 | C17: 19 | D17: 3 | E17: 1200 | F17: 50 | G17: 3 | H17: 16 | L17: Oct
A18: Nov | B18: 150 | C18: 70 | D18: 5 | E18: 851 | F18: 50 | G18: 5 | H18: 17 | L18: Nov
A19: Dec | B19: 150 | C19: 44 | D19: 6 | E19: 729 | F19: 50 | G19: 6 | H19: 17 | L19: Dec
L20: Annual | M20: =AVERAGE(M8:M19) ->  | O20: =MAX(O8:O19) -> 0 | P20: =AVERAGE(P8:P19) ->  | Q20: =MAX(Q8:Q19) -> 0
K22: =+A6 -> 2025 | L22: mg/Nm3 | M22: Highest daily 95%ile 10-min average | N22: Monthly mean of 10-min averages | O22: Highest 10-min average | P22: Monthly mean of daily averages | Q22: Highest daily average
K23: A2 | L23: Jan
L24: Feb
L25: Mar
L26: Apr
L27: May
L28: Jun
L29: Jul
L30: Aug
L31: Sep
L32: Oct
L33: Nov
L34: Dec
L35: Annual | M35: =AVERAGE(M23:M34) ->  | O35: =MAX(O23:O34) -> 0 | P35: =AVERAGE(P23:P34) ->  | Q35: =MAX(Q23:Q34) -> 0
K37: =+A6 -> 2025 | L37: mg/Nm3 | M37: Highest daily 95%ile 10-min average | N37: Monthly mean of 10-min averages | O37: Highest 10-min average | P37: Monthly mean of daily averages | Q37: Highest daily average
K38: A3 | L38: Jan
L39: Feb
L40: Mar
L41: Apr
L42: May
L43: Jun
L44: Jul
L45: Aug
L46: Sep
L47: Oct
L48: Nov
A49: Comments : | L49: Dec
A50: Environment Agency explanatory note: The 10-minute average ELV is based on the “95th percentile”. In this case this means that 95% of the 10 minute averages in the relevant 24-hour period (i.e. 137) must be below 150 mg/Nm3, and 5% (i.e. 7) are allowed to be any value above 150 mg/Nm3. Whilst we expect operators to minimise CO emissions at all times, it is perfectly acceptable for the value of the maximum 10-minute average to be above 150 mg/Nm3, provided the 95th percentile ELV has been met for that period. | L50: Annual | M50: =AVERAGE(M38:M49) ->  | O50: =MAX(O38:O49) -> 0 | P50: =AVERAGE(P38:P49) ->  | Q50: =MAX(Q38:Q49) -> 0
K52: =+A6 -> 2025 | L52: mg/Nm3 | M52: Highest daily 95%ile 10-min average | N52: Monthly mean of 10-min averages | O52: Highest 10-min average | P52: Monthly mean of daily averages | Q52: Highest daily average
K53: A4 | L53: Jan
L54: Feb
L55: Mar
L56: Apr
L57: May
L58: Jun
L59: Jul
L60: Aug
L61: Sep
L62: Oct
L63: Nov
L64: Dec
L65: Annual | M65: =AVERAGE(M53:M64) ->  | O65: =MAX(O53:O64) -> 0 | P65: =AVERAGE(P53:P64) ->  | Q65: =MAX(Q53:Q64) -> 0
K67: =+A6 -> 2025 | L67: mg/Nm3 | M67: 95%ile 10-min avg maximum | N67: Monthly CO 10-min avg mean | O67: 10-min avg maximum | P67: Monthly daily mean | Q67: Monthly daily maximum
K68: A5 | L68: Jan
L69: Feb
L70: Mar
L71: Apr
L72: May
L73: Jun
L74: Jul
L75: Aug
L76: Sep
L77: Oct
L78: Nov
L79: Dec
L80: Annual | M80: =AVERAGE(M68:M79) ->  | O80: =MAX(O68:O79) -> 0 | P80: =AVERAGE(P68:P79) ->  | Q80: =MAX(Q68:Q79) -> 0

Sheet NH3
A1: =+'Cover Page'!$B$29 -> Annual Performance Report 2025 | E1: =+'Cover Page'!$B$33 -> Severn Waste Services Limited
A3: Monitoring of Ammnonia emissions | D3: Whole Installation | G3: See Notes in Cell Q3 | J3: =+A3 -> Monitoring of Ammnonia emissions | N3: Per Combustion Line | Q3: Notes:
Q4: User to add logic to complete Whole installation, Table A5:G18. From the data in Per Combustion Line, Table J6:O79, subject to No. of lines installed
A5: =+'Cover Page'!C39 -> 2025 | B5: 1/2 Hourly Reference Periods | E5: Daily Reference Periods
A6: mg/Nm3 | B6: 1/2 hourly NH3 ELV | C6: Monthly mean of half-hourly averages | D6: Highest half- hourly average | E6: Daily NH3 ELV | F6: Monthly mean of daily averages | G6: Highest daily average | J6: =+A5 -> 2025 | K6: mg/Nm3 | L6: Monthly mean of half-hourly averages | M6: Highest half- hourly average | N6: Monthly mean of daily averages | O6: Highest daily average
A7: Jan | B7: None | C7: 1 | D7: 2 | E7: 15 | F7: 1 | G7: 1 | J7: A1 | K7: Jan
A8: Feb | B8: =+B7 -> None | C8: 1 | D8: 2 | E8: 15 | F8: 1 | G8: 1 | K8: Feb
A9: Mar | B9: =+B8 -> None | C9: 1 | D9: 2 | E9: 15 | F9: 1 | G9: 1 | K9: Mar | Q9: Whole Installation table A5:G18:
A10: Apr | B10: None | C10: 1 | D10: 3 | E10: 15 | F10: 1 | G10: 1 | K10: Apr | Q10: Mean: for 1/2 hourly and daily periods calculate mean of values across all operational combustion lines for the month
A11: May | B11: None | C11: 1 | D11: 3 | E11: 15 | F11: 1 | G11: 1 | K11: May
A12: Jun | B12: None | C12: 1 | D12: 9 | E12: 15 | F12: 1 | G12: 1 | K12: Jun
A13: Jul | B13: None | C13: 1 | D13: 2 | E13: 15 | F13: 1 | G13: 1 | K13: Jul | Q13: Maximum: for 1/2 hourly and daily periods use the highest value across all operational combustion lines for the month
A14: Aug | B14: None | C14: 1 | D14: 1 | E14: 15 | F14: 1 | G14: 1 | K14: Aug
A15: Sep | B15: None | C15: 1 | D15: 2 | E15: 15 | F15: 1 | G15: 1 | K15: Sep
A16: Oct | B16: None | C16: 1 | D16: 2 | E16: 15 | F16: 1 | G16: 1 | K16: Oct
A17: Nov | B17: None | C17: 1 | D17: 2 | E17: 15 | F17: 1 | G17: 1 | K17: Nov
A18: Dec | B18: None | C18: 0 | D18: 2 | E18: 15 | F18: 0 | G18: 1 | K18: Dec
K19: Annual | L19: =AVERAGE(L7:L18) ->  | M19: =MAX(M7:M18) -> 0 | N19: =AVERAGE(N7:N18) ->  | O19: =MAX(O7:O18) -> 0
J21: =+A5 -> 2025 | K21: mg/Nm3 | L21: Monthly mean of half-hourly averages | M21: Highest half- hourly average | N21: Monthly mean of daily averages | O21: Highest daily average
J22: A2 | K22: Jan
K23: Feb
K24: Mar
K25: Apr
K26: May
K27: Jun
K28: Jul
K29: Aug
K30: Sep
K31: Oct
K32: Nov
K33: Dec
K34: Annual | L34: =AVERAGE(L22:L33) ->  | M34: =MAX(M22:M33) -> 0 | N34: =AVERAGE(N22:N33) ->  | O34: =MAX(O22:O33) -> 0
J36: =+A5 -> 2025 | K36: mg/Nm3 | L36: Monthly mean of half-hourly averages | M36: Highest half- hourly average | N36: Monthly mean of daily averages | O36: Highest daily average
J37: A3 | K37: Jan
K38: Feb
K39: Mar
K40: Apr
K41: May
K42: Jun
K43: Jul
K44: Aug
K45: Sep
K46: Oct
K47: Nov
A48: Comments : | K48: Dec
A49: An indicated ELV value of zero in the table above means that no ammonia limit is/was set in the permit. | K49: Annual | L49: =AVERAGE(L37:L48) ->  | M49: =MAX(M37:M48) -> 0 | N49: =AVERAGE(N37:N48) ->  | O49: =MAX(O37:O48) -> 0
J51: =+A5 -> 2025 | K51: mg/Nm3 | L51: Monthly mean of half-hourly averages | M51: Highest half- hourly average | N51: Monthly mean of daily averages | O51: Highest daily average
J52: A4 | K52: Jan
K53: Feb
K54: Mar
K55: Apr
K56: May
K57: Jun
K58: Jul
K59: Aug
K60: Sep
K61: Oct
K62: Nov
K63: Dec
K64: Annual | L64: =AVERAGE(L52:L63) ->  | M64: =MAX(M52:M63) -> 0 | N64: =AVERAGE(N52:N63) ->  | O64: =MAX(O52:O63) -> 0
J66: =+A5 -> 2025 | K66: mg/Nm3 | L66: Monthly mean of half-hourly averages | M66: Highest half- hourly average | N66: Monthly mean of daily averages | O66: Highest daily average
J67: A5 | K67: Jan
K68: Feb
K69: Mar
K70: Apr
K71: May
K72: Jun
K73: Jul
K74: Aug
K75: Sep
K76: Oct
K77: Nov
K78: Dec
K79: Annual | L79: =AVERAGE(L67:L78) ->  | M79: =MAX(M67:M78) -> 0 | N79: =AVERAGE(N67:N78) ->  | O79: =MAX(O67:O78) -> 0
